bitfinex-derivatives/quotes_ETHF0:USTF0_20260214
["timestamp","ask_amount","ask_price","bid_price","bid_amount"]
[1771085906915,0.57536083,2076.0,2075.1,0.69257705]
[1771085907414,0.57536083,2076.0,2075.2,0.45154705]
[1771085908512,0.57536083,2076.0,2075.1,0.24103]
[1771085909615,0.57536083,2076.0,2075.2,0.45574194]
[1771085911008,0.57536083,2076.0,2075.1,0.69590414]
[1771085912415,0.57536083,2076.0,2075.1,0.24103]
[1771085913117,0.57536083,2076.0,2075.1,0.69345772]
[1771085913713,0.57536083,2076.0,2075.0,0.00588985]
[1771085913921,0.57536083,2075.8,2075.0,0.00588985]
[1771085914214,0.57536083,2075.8,2075.1,0.24103]
[1771085914715,0.57536083,2075.8,2075.0,0.2013419]
[1771085915112,0.57536083,2075.8,2075.1,0.24103]
[1771085916321,6.4562448,2075.7,2074.5,0.24109]
[1771085916516,0.57536083,2075.6,2074.6,0.19561799]
[1771085917522,0.57536083,2075.6,2074.6,0.20064399]
[1771085918624,0.57536083,2075.6,2074.6,0.005026]
[1771085918820,0.57536083,2075.4,2074.6,0.005026]
[1771085920118,0.57536083,2075.2,2074.0,0.43821153]
[1771085920416,0.57536083,2075.2,2074.1,0.20207753]
[1771085920619,0.57536083,2075.0,2074.1,0.20207753]
[1771085921017,0.57536083,2075.0,2074.0,0.24116]
[1771085921211,0.56475282,2074.8,2074.0,0.20620072]
[1771085921417,0.56475282,2074.8,2074.0,0.00404888]
[1771085922419,0.56475282,2074.8,2074.0,0.20769544]
[1771085923626,0.56475282,2074.8,2074.0,0.20795722]
[1771085924119,0.56475282,2074.8,2074.2,0.19216066]
[1771085924623,0.56475282,2074.8,2074.0,0.00404888]
[1771085925921,0.56475282,2074.8,2074.0,0.24519888]
[1771085926520,0.58984646,2075.0,2074.0,0.24519888]
[1771085927924,0.58984646,2075.0,2074.3,0.0023846]
[1771085928529,0.58984646,2075.0,2074.5,0.0023846]
[1771085929029,0.58984646,2075.0,2074.4,0.24111]
[1771085929228,0.58984646,2075.0,2074.4,0.2434946]
[1771085930428,0.58249103,2075.2,2074.5,0.00754273]
[1771085931539,0.58249103,2075.2,2074.6,0.24863273]
[1771085932732,0.58249103,2075.2,2074.6,0.24109]
[1771085933933,0.58252967,2075.6,2074.8,0.24853545]
[1771085934133,0.58252967,2075.6,2075.0,0.24850545]
[1771085934928,0.58252967,2075.6,2075.0,0.24104]
[1771085938037,0.58252967,2075.6,2075.0,0.24235249]
[1771085939840,0.58252967,2075.6,2075.1,0.00134434]
[1771085940738,0.58559023,2076.0,2075.3,0.00134434]
[1771085942641,0.00593564,2076.1,2075.5,0.00840928]
[1771085942840,0.00593564,2076.1,2075.6,0.00840928]
[1771085943342,0.5879934,2076.1,2075.6,0.00840928]
[1771085943639,0.00593564,2076.1,2075.8,0.00840928]
[1771085944039,0.58423896,2076.1,2075.7,0.24096]
[1771085944442,0.58423896,2076.1,2075.5,0.0054684]
[1771085944742,0.58423896,2076.1,2075.1,0.24103]
[1771085944943,0.58423896,2076.1,2074.8,0.02138656]
[1771085945740,0.58423896,2076.1,2075.0,0.02138656]
[1771085945741,0.57769891,2075.9,2075.0,0.02138656]
[1771085946849,0.57769891,2075.9,2074.9,0.27381307]
[1771085947748,0.57769891,2075.9,2075.0,0.03276307]
[1771085953448,0.57769891,2075.9,2074.9,0.24343101]
[1771085954746,0.57769891,2075.9,2075.0,0.00350859]
[1771085955144,0.57769891,2075.9,2075.2,0.00350859]
[1771085955350,0.57769891,2075.9,2075.4,0.00350859]
[1771085956452,0.57769891,2075.9,2075.5,0.24931466]
[1771085956854,0.53120433,2076.0,2075.5,0.24098]
[1771085957054,0.53120433,2076.0,2075.2,0.55771026]
[1771085957449,0.53120433,2076.0,2075.0,0.24104]
[1771085957854,0.53120433,2075.8,2075.0,0.24104]
[1771085958452,0.53120433,2075.8,2074.8,0.00607171]
[1771085959058,0.53120433,2075.7,2074.8,0.00607171]
[1771085960059,0.53120433,2075.3,2074.0,0.55771026]
[1771085960855,0.53120433,2075.3,2074.0,0.56313394]
[1771085961356,0.53120433,2075.3,2074.2,0.55771026]
[1771085962259,0.53120433,2075.3,2074.0,0.00542368]
[1771085962260,0.53120433,2075.3,2074.4,0.55771026]
[1771085963352,0.53120433,2075.2,2074.4,0.55771026]
[1771085963552,0.53120433,2075.2,2074.6,0.55771026]
[1771085965361,0.53120433,2075.2,2074.5,0.2411]
[1771085965863,0.53120433,2075.2,2074.5,0.79881026]
[1771085966666,0.53120433,2075.2,2074.5,0.2411]
[1771085967767,0.53120433,2075.2,2074.1,0.55771026]
[1771085967964,0.53120433,2075.2,2074.5,0.79881026]
[1771085968269,0.53120433,2075.2,2074.6,0.55771026]
[1771085968457,0.53120433,2075.2,2074.5,0.2411]
[1771085971076,0.53120433,2075.2,2074.5,0.79881026]
[1771085971878,0.53120433,2075.2,2074.6,0.55771026]
[1771085973378,0.53120433,2075.6,2074.8,0.55771026]
[1771085973881,0.53120433,2075.6,2074.9,0.24105]
[1771085974083,1.79619891,2075.7,2075.0,0.55771026]
[1771085974284,0.53120433,2075.6,2075.0,0.55771026]
[1771085974583,40.80383781,2076.0,2074.9,0.24105]
[1771085974584,0.53504214,2076.0,2075.2,0.55771026]
[1771085974783,0.53120433,2075.6,2075.1,0.24103]
[1771085974977,0.53120433,2075.6,2075.2,0.55771026]
[1771085976281,0.53120433,2075.6,2075.1,0.24103]
[1771085976282,0.53120433,2075.6,2075.1,0.55771026]
[1771085976477,0.53120433,2075.6,2074.9,0.55771026]
[1771085978384,0.53120433,2075.6,2074.6,0.55771026]
[1771085978978,0.53120433,2075.6,2074.5,0.79880026]
[1771085979177,0.53120433,2075.6,2074.6,0.55771026]
[1771085979885,0.53120433,2075.6,2074.5,0.24109]
[1771085981086,0.53120433,2075.6,2074.0,0.00542368]
[1771085981087,0.5720185,2075.4,2074.0,0.00542368]
[1771085981286,0.5720185,2075.2,2074.0,0.53366102]
[1771085981588,0.5720185,2075.0,2074.0,0.53366102]
[1771085982888,0.54933917,2074.8,2074.0,0.53366102]
[1771085983986,0.54933917,2074.8,2074.0,0.00542368]
[1771085985487,0.54933917,2074.8,2073.8,0.53443178]
[1771085985883,0.54933917,2074.8,2073.3,0.24124]
[1771085986089,0.54933917,2074.8,2073.6,0.53443178]
[1771085986389,0.54933917,2074.8,2073.8,0.53443178]
[1771085986684,0.54933917,2074.8,2073.8,0.53848998]
[1771085987183,0.54933917,2074.8,2073.8,0.0040582]
[1771085987782,0.54933917,2074.8,2073.8,0.53848998]
[1771085989191,0.54933917,2074.6,2073.8,0.53848998]
[1771085991989,0.54933917,2074.6,2073.8,0.0040582]
[1771085993693,0.54933917,2074.6,2073.8,0.53848998]
[1771085994793,0.54933917,2074.6,2073.8,0.0040582]
[1771085995491,0.54933917,2074.6,2073.8,0.53848998]
[1771085997791,0.54933917,2074.6,2073.8,0.0040582]
[1771085998990,0.2411,2074.5,2073.1,0.034]
[1771085999196,0.54933917,2074.2,2072.8,0.53443178]
[1771085999398,0.54933917,2074.0,2072.8,0.53443178]
[1771085999991,0.55458496,2074.0,2072.8,0.53983265]
[1771086000196,0.54933917,2073.9,2072.8,0.53983265]
[1771086000397,0.54933917,2073.7,2072.8,0.00540087]
[1771086000793,0.54933917,2073.7,2072.8,0.53983265]
[1771086002002,41.34933917,2073.8,2073.0,0.53443178]
[1771086002201,0.54933917,2073.8,2073.0,0.53443178]
[1771086005309,0.54933917,2073.8,2072.8,0.00540087]
[1771086005906,0.54933917,2073.8,2072.3,0.77579178]
[1771086006506,0.54933917,2073.8,2072.4,0.53443178]
[1771086006710,0.54933917,2073.8,2072.6,0.53443178]
[1771086006909,0.54933917,2073.8,2072.6,0.53852695]
[1771086007709,0.54933917,2073.8,2072.6,0.00409517]
[1771086008116,0.54933917,2073.6,2072.6,0.00409517]
[1771086009714,0.54933917,2073.4,2072.6,0.00409517]
[1771086009914,0.54933917,2073.4,2072.6,0.53852695]
[1771086012416,0.54933917,2073.4,2072.6,0.00409517]
[1771086013405,0.54933917,2073.4,2071.9,0.2414]
[1771086013406,0.54933917,2073.4,2072.0,0.5464242]
[1771086013713,0.53523134,2073.2,2072.0,0.5464242]
[1771086013914,0.53523134,2073.1,2072.0,0.5464242]
[1771086014516,0.53523134,2072.9,2072.0,0.00577805]
[1771086014812,0.53523134,2072.5,2071.4,0.5464242]
[1771086015117,0.53523134,2072.4,2071.4,0.5464242]
[1771086015314,0.53523134,2072.2,2071.4,0.5464242]
[1771086015612,0.54129186,2072.2,2071.4,0.55239399]
[1771086018121,0.54129186,2072.2,2071.4,0.00596979]
[1771086018813,0.54129186,2072.2,2071.0,0.5464242]
[1771086019015,0.54129186,2072.2,2070.6,0.24155]
[1771086019214,0.54129186,2072.2,2070.7,0.5464242]
[1771086019810,0.54129186,2072.2,2070.7,0.55105074]
[1771086020116,0.54129186,2072.2,2070.9,0.5464242]
[1771086020722,0.54129186,2072.2,2071.1,0.5464242]
[1771086021120,0.54129186,2072.2,2071.3,0.5464242]
[1771086021522,0.54129186,2072.2,2071.2,0.7879142]
[1771086021821,0.54129186,2072.2,2071.3,0.5464242]
[1771086022522,0.58046054,2072.0,2071.2,0.24149]
[1771086022718,0.58046054,2072.0,2071.3,0.57835472]
[1771086023224,0.58046054,2072.0,2071.2,0.24149]
[1771086023419,0.58046054,2072.0,2071.2,0.81984472]
[1771086023614,0.00606052,2072.2,2071.2,0.24149]
[1771086023820,0.58652106,2072.2,2071.3,0.57835472]
[1771086024323,0.58652106,2072.2,2070.9,0.57835472]
[1771086025718,0.58046054,2071.8,2070.1,0.57835472]
[1771086025916,0.58046054,2071.6,2070.3,0.57835472]
[1771086026725,0.58046054,2071.6,2070.3,0.58422627]
[1771086027424,0.58046054,2071.4,2070.3,0.58422627]
[1771086029823,0.58046054,2071.4,2070.3,0.00587155]
[1771086030016,0.58046054,2071.2,2070.3,0.58422627]
[1771086030224,0.58046054,2071.2,2070.3,0.00587155]
[1771086030422,0.58046054,2071.2,2069.9,0.57835472]
[1771086031418,0.58046054,2071.2,2069.9,0.58261335]
[1771086031822,0.58046054,2071.2,2069.9,0.00425863]
[1771086033020,0.58046054,2070.9,2069.6,0.57835472]
[1771086033927,0.58046054,2070.9,2069.6,0.58451804]
[1771086035628,0.58046054,2070.7,2069.6,0.58451804]
[1771086035926,0.58431484,2070.7,2069.6,0.58451804]
[1771086036627,0.0038543,2070.7,2070.0,0.57835472]
[1771086036830,0.58046054,2072.2,2070.5,0.24157]
[1771086037025,0.58046054,2072.0,2070.6,0.57835472]
[1771086037322,0.58046054,2072.0,2069.1,5.94653]
[1771086037323,0.58046054,2071.6,2070.0,0.57835472]
[1771086037521,0.58046054,2071.6,2070.2,0.57835472]
[1771086038118,0.58611305,2071.6,2070.2,0.57835472]
[1771086041932,0.53008594,2071.4,2070.2,0.57835472]
[1771086042425,0.53008594,2071.2,2069.7,0.58294937]
[1771086042627,0.52959911,2071.0,2069.7,0.58294937]
[1771086045536,0.52959911,2070.8,2069.7,0.58294937]
[1771086048131,0.52959911,2070.6,2069.7,0.58294937]
[1771086050236,0.52959911,2070.6,2069.6,0.00616332]
[1771086050534,0.52959911,2070.6,2069.6,0.54148259]
[1771086050736,0.52959911,2071.0,2069.6,0.54148259]
[1771086050934,3.9757383,2071.2,2069.6,0.54148259]
[1771086050935,0.52959911,2070.8,2069.6,0.54148259]
[1771086051237,0.52959911,2070.7,2069.6,0.54148259]
[1771086052332,0.52959911,2070.7,2069.8,0.53531927]
[1771086052537,8.2122083,2071.3,2069.8,0.53531927]
[1771086052734,0.52959911,2071.1,2070.0,0.53531927]
[1771086053036,0.52959911,2071.0,2070.0,0.53531927]
[1771086055342,0.52959911,2070.8,2070.0,0.53531927]
[1771086058135,0.52959911,2070.6,2069.7,0.53531927]
[1771086059642,0.52959911,2070.4,2069.6,0.00616332]
[1771086059840,0.52959911,2070.2,2069.6,0.00616332]
[1771086060143,0.52959911,2070.2,2069.4,0.53531927]
[1771086060635,0.52959911,2070.4,2069.4,0.53531927]
[1771086060831,5.854,2070.6,2068.7,1.95935837]
[1771086060832,6.38359911,2070.6,2069.6,0.53531927]
[1771086061032,0.52959911,2070.5,2069.6,0.53996266]
[1771086061537,0.52959911,2070.5,2069.6,0.52196266]
[1771086062242,6.38359911,2070.6,2069.6,0.52196266]
[1771086062439,0.52959911,2070.6,2069.7,0.24166]
[1771086062639,0.52959911,2070.9,2069.8,0.53531927]
[1771086062847,6.97529192,2070.8,2069.8,0.53531927]
[1771086063044,6.97529192,2070.7,2069.8,0.53531927]
[1771086063242,0.52959911,2070.7,2069.8,0.53531927]
[1771086063643,41.32959911,2071.1,2070.2,0.53531927]
[1771086063939,0.52959911,2071.0,2070.2,0.03531927]
[1771086064436,6.01621638,2071.6,2069.6,0.00464339]
[1771086064437,0.53525162,2071.6,2070.6,0.53531927]
[1771086065739,0.52959911,2072.1,2070.9,0.24152]
[1771086065944,0.52959911,2072.1,2071.0,0.53531927]
[1771086066136,0.52959911,2072.1,2071.2,0.53531927]
[1771086066746,0.52959911,2072.5,2071.6,0.53531927]
[1771086067145,41.32959911,2072.7,2071.6,0.53531927]
[1771086067648,0.52959911,2072.7,2071.8,0.53531927]
[1771086067840,0.00345058,2072.7,2071.8,0.53531927]
[1771086068045,0.52959911,2073.0,2071.8,0.53531927]
[1771086069138,0.53330672,2073.0,2071.8,0.53531927]
[1771086069548,0.53330672,2073.0,2072.0,0.53531927]
[1771086069844,0.00370761,2073.0,2072.2,0.53531927]
[1771086070046,0.52959911,2073.4,2072.6,0.53531927]
[1771086070348,0.52959911,2073.4,2072.5,0.24133]
[1771086070349,0.52959911,2074.1,2072.8,0.53531927]
[1771086070543,0.52959911,2074.1,2071.9,7.89793837]
[1771086070544,0.52959911,2072.8,2071.3,0.24147]
[1771086070744,0.52959911,2072.6,2071.3,0.53531927]
[1771086070943,0.53567787,2072.6,2071.3,0.54082763]
[1771086071941,0.53567787,2072.6,2071.4,0.24146]
[1771086072137,0.53567787,2072.6,2071.5,0.53531927]
[1771086079652,0.57332308,2072.4,2071.5,0.53531927]
[1771086081751,41.37940184,2072.6,2071.5,0.53531927]
[1771086081950,0.57332308,2072.5,2071.5,0.53531927]
[1771086082548,0.57332308,2072.5,2071.7,0.55701493]
[1771086085251,0.00607876,2072.6,2071.7,0.55701493]
[1771086085453,0.57940184,2072.6,2071.7,0.55701493]
[1771086090859,2.53876021,2072.6,2071.5,0.55701493]
[1771086091163,0.57332308,2072.5,2071.5,0.55701493]
[1771086091358,40.8,2072.4,2071.3,0.00550836]
[1771086091563,0.57332308,2072.3,2071.3,0.00550836]
[1771086091953,0.57332308,2072.3,2071.3,0.21773444]
[1771086094174,0.57332308,2072.1,2070.7,0.21000694]
[1771086094378,0.57332308,2071.7,2070.1,0.21000694]
[1771086094576,0.57332308,2071.5,2070.1,0.21000694]
[1771086094966,1.95935837,2071.8,2070.1,0.21000694]
[1771086094967,0.57332308,2071.3,2070.1,0.21000694]
[1771086095170,0.57332308,2071.3,2070.1,0.21584967]
[1771086095570,0.57332308,2071.3,2069.8,0.21000694]
[1771086095776,0.57332308,2070.9,2069.8,0.21000694]
[1771086096678,0.57801782,2070.9,2069.8,0.21522667]
[1771086096871,41.37332308,2070.8,2069.8,0.21522667]
[1771086097273,0.00469474,2070.9,2070.0,0.21261319]
[1771086097480,0.57801782,2070.9,2070.0,0.21261319]
[1771086097977,0.57801782,2070.9,2069.9,0.45254371]
[1771086098185,0.57801782,2070.9,2070.0,0.21090371]
[1771086098677,0.57801782,2070.9,2069.8,0.21612344]
[1771086100174,0.57801782,2070.9,2069.4,0.22482164]
[1771086101078,0.57801782,2070.9,2069.4,0.23028083]
[1771086102679,0.57801782,2070.9,2069.4,0.23326246]
[1771086103077,0.57801782,2070.9,2069.4,0.00545919]
[1771086103383,0.54458856,2070.7,2069.4,0.00545919]
[1771086103579,0.54458856,2070.6,2069.4,0.00545919]
[1771086104178,0.54458856,2070.6,2069.4,0.23033337]
[1771086104377,0.54458856,2070.6,2069.6,0.22487418]
[1771086104775,0.54458856,2070.6,2069.5,0.46655418]
[1771086104976,0.54458856,2070.6,2069.6,0.22487418]
[1771086106982,0.54458856,2070.6,2069.8,0.21857789]
[1771086111781,0.54458856,2070.6,2069.7,0.24166]
[1771086111985,0.54458856,2070.6,2069.7,0.46693033]
[1771086112885,0.54458856,2070.6,2069.4,0.00545919]
[1771086113785,0.54458856,2070.2,2068.7,0.24177]
[1771086114690,0.54458856,2070.2,2068.7,0.24540185]
[1771086115189,0.54458856,2069.6,2068.1,0.24184]
[1771086115384,0.54458856,2069.4,2068.2,0.23582398]
[1771086115584,0.54458856,2069.4,2067.8,0.23582398]
[1771086116389,0.54819872,2069.4,2067.8,0.24181091]
[1771086117387,0.54458856,2069.2,2068.0,0.24391157]
[1771086118379,0.54458856,2069.2,2068.0,0.25139261]
[1771086118789,0.54458856,2069.2,2068.2,0.25139261]
[1771086119087,0.54458856,2069.2,2068.4,0.25139261]
[1771086120680,0.54819872,2069.4,2068.6,0.26238561]
[1771086120982,0.54819872,2069.4,2068.4,0.26238561]
[1771086121188,0.54819872,2069.4,2068.2,0.26238561]
[1771086121586,0.54819872,2069.4,2067.9,4.23987]
[1771086121893,0.54458856,2069.0,2067.8,0.00598693]
[1771086122092,0.54458856,2069.0,2067.8,0.25823175]
[1771086122484,0.54458856,2069.0,2068.1,0.25224482]
[1771086122789,0.54458856,2069.0,2068.3,0.25224482]
[1771086123892,0.54458856,2069.0,2068.2,0.24184]
[1771086124091,0.54458856,2069.2,2068.5,0.26862001]
[1771086124584,0.54458856,2069.2,2068.4,0.24181]
[1771086126593,0.54458856,2069.2,2068.0,0.26909562]
[1771086127092,0.54458856,2069.2,2067.9,0.26909562]
[1771086127994,0.54458856,2069.2,2068.1,0.26909562]
[1771086129187,0.54458856,2069.2,2068.2,0.24184]
[1771086129588,0.54458856,2069.2,2068.3,0.27022517]
[1771086129789,0.54458856,2069.2,2068.2,0.24184]
[1771086130191,0.54458856,2069.2,2068.3,0.26999651]
[1771086130394,0.54458856,2069.2,2068.2,0.24184]
[1771086131791,0.54458856,2069.2,2067.9,0.26999651]
[1771086132098,0.54458856,2069.2,2068.1,0.27211542]
[1771086132896,0.54458856,2069.2,2068.0,0.24186]
[1771086133796,0.54458856,2069.2,2068.0,0.51599985]
[1771086134294,0.54458856,2069.2,2068.1,0.27304308]
[1771086136591,0.54458856,2069.2,2068.3,0.27522766]
[1771086137093,0.582706,2069.4,2068.6,0.24179]
[1771086137293,0.582706,2069.4,2068.1,0.27522766]
[1771086138797,0.57909584,2069.2,2068.1,0.27522766]
[1771086139997,0.57909584,2069.2,2068.2,0.24184]
[1771086140197,0.57909584,2069.2,2068.3,0.27499368]
[1771086141104,0.57909584,2069.2,2068.5,0.27499368]
[1771086141296,0.57909584,2069.2,2068.4,0.24181]
[1771086142497,0.57909584,2069.2,2068.4,0.50274358]
[1771086142698,0.57909584,2069.2,2068.5,0.26093358]
[1771086142897,0.582706,2069.4,2068.5,0.26093358]
[1771086144806,0.582706,2069.4,2068.4,0.24181]
[1771086145104,0.57909584,2069.2,2068.5,0.26820012]
[1771086145597,0.57909584,2069.2,2068.4,0.24181]
[1771086145793,0.57909584,2069.2,2068.5,0.26820012]
[1771086145997,0.57909584,2069.2,2068.4,0.50457566]
[1771086146705,0.57909584,2069.2,2068.5,0.26276566]
[1771086147202,0.57909584,2069.2,2068.6,0.50455566]
[1771086147402,0.582706,2069.4,2068.7,0.26276566]
[1771086147799,0.582706,2069.4,2068.0,3.999]
[1771086147800,0.582706,2069.4,2068.8,0.50453566]
[1771086148002,0.582706,2069.4,2068.9,0.24898508]
[1771086149405,0.00361016,2069.4,2068.9,0.24898508]
[1771086149602,0.582706,2069.4,2068.9,0.24898508]
[1771086149802,0.00361016,2069.4,2068.9,0.24898508]
[1771086150004,0.582706,2069.4,2068.9,0.24898508]
[1771086150607,0.00361016,2069.4,2068.9,0.24898508]
[1771086151711,0.57909584,2069.8,2069.1,0.24857649]
[1771086152114,0.57909584,2069.8,2069.0,0.48739767]
[1771086152712,0.58521838,2069.8,2069.0,0.48739767]
[1771086154511,0.58521838,2069.8,2069.1,0.2570464]
[1771086156117,0.58521838,2069.8,2069.0,0.24174]
[1771086156417,0.58521838,2069.8,2069.0,0.49824628]
[1771086157218,0.58521838,2069.8,2069.1,0.25650628]
[1771086157709,0.58521838,2069.8,2069.3,0.25650628]
[1771086157710,0.00612254,2069.8,2069.3,0.25650628]
[1771086157913,0.58521838,2069.8,2069.3,0.26221857]
[1771086158417,8.036,2070.5,2069.3,0.26221857]
[1771086158418,0.57909584,2070.0,2069.3,0.26221857]
[1771086158615,0.57909584,2070.0,2069.4,0.2417]
[1771086158809,0.57909584,2070.0,2069.5,0.25732211]
[1771086159014,0.57909584,2070.4,2069.5,0.25732211]
[1771086159418,0.58432558,2070.4,2069.5,0.25732211]
[1771086159613,0.58432558,2070.4,2069.7,0.25732211]
[1771086159813,0.58432558,2070.4,2069.6,0.24167]
[1771086160013,0.58432558,2070.4,2069.6,0.49853972]
[1771086160414,0.58432558,2070.4,2069.7,0.25686972]
[1771086161609,0.58432558,2070.4,2069.6,0.24167]
[1771086163021,0.58432558,2070.4,2069.6,0.48699064]
[1771086163317,0.58432558,2070.4,2069.7,0.24532064]
[1771086165022,0.58432558,2070.4,2069.8,0.46724634]
[1771086166124,0.58432558,2070.4,2069.8,0.24165]
[1771086166618,0.58432558,2070.4,2069.8,0.45877007]
[1771086167022,0.58432558,2070.4,2069.9,0.21712007]
[1771086168720,0.58584853,2070.7,2070.1,0.21150433]
[1771086169122,0.58584853,2070.7,2070.0,0.24163]
[1771086169324,0.58709113,2071.4,2070.0,0.24163]
[1771086169625,0.58709113,2071.2,2070.0,0.24163]
[1771086171422,0.58706331,2071.0,2069.5,0.24168]
[1771086171820,0.58706331,2071.0,2069.6,0.00377789]
[1771086172224,0.58706331,2071.0,2069.8,0.00377789]
[1771086172827,0.58584853,2070.9,2069.7,0.24166]
[1771086173525,0.58584853,2070.9,2069.7,0.24543789]
[1771086173726,0.58584853,2070.9,2069.8,0.00377789]
[1771086174221,0.58584853,2070.9,2069.9,0.24164]
[1771086176224,0.58584853,2070.9,2069.9,0.24623388]
[1771086177534,0.58584853,2070.9,2070.2,0.00459388]
[1771086177739,0.58584853,2070.9,2070.1,0.24161]
[1771086178429,0.58584853,2070.9,2069.6,0.24167]
[1771086178933,0.58584853,2070.9,2069.6,0.24441228]
[1771086179341,0.58584853,2070.7,2069.6,0.24441228]
[1771086179842,0.58584853,2070.7,2069.6,0.24167]
[1771086180139,0.58584853,2070.7,2069.4,0.00274228]
[1771086180140,6.45123591,2070.6,2069.4,0.00274228]
[1771086180337,6.45123591,2070.6,2069.3,0.00571229]
[1771086180338,0.24158,2070.4,2069.3,0.00571229]
[1771086180540,0.58584853,2070.2,2068.8,0.00729875]
[1771086180735,0.58584853,2070.2,2068.6,4.24279]
[1771086180736,0.58584853,2070.2,2069.0,0.01301104]
[1771086181042,0.58584853,2070.0,2069.0,0.01301104]
[1771086181533,0.58584853,2070.0,2068.6,4.001]
[1771086181534,0.58584853,2070.0,2069.4,0.01301104]
[1771086182935,0.58584853,2070.0,2069.3,0.24171]
[1771086184536,0.58584853,2070.0,2069.4,0.00628095]
[1771086186145,0.58584853,2070.0,2069.5,0.24766011]
[1771086186441,0.58584853,2070.0,2069.5,0.24168]
[1771086187039,0.58584853,2070.0,2069.5,0.24766011]
[1771086187435,0.58584853,2070.0,2069.6,0.00598011]
[1771086187644,0.58584853,2070.5,2069.6,0.00598011]
[1771086187839,0.58584853,2070.5,2069.8,0.58584853]
[1771086188044,0.58584853,2070.5,2069.7,0.24166]
[1771086188435,0.58584853,2070.5,2069.8,0.58558973]
[1771086189444,0.58584853,2070.5,2069.7,0.24166]
[1771086189850,0.58584853,2070.5,2069.1,4.58658973]
[1771086190051,0.58584853,2070.5,2069.4,0.58667392]
[1771086191244,0.58584853,2070.5,2069.3,0.82838392]
[1771086191444,0.58584853,2070.3,2069.3,0.82838392]
[1771086192849,0.55208679,2070.1,2069.0,0.00626706]
[1771086193148,0.55208679,2070.1,2069.2,0.57828112]
[1771086193743,0.55208679,2070.1,2069.4,0.57828112]
[1771086194050,0.55208679,2070.3,2069.5,0.24168]
[1771086194249,0.55208679,2070.3,2069.5,0.81996112]
[1771086194851,0.55208679,2070.3,2069.5,0.24168]
[1771086195844,0.55208679,2070.3,2069.0,0.00626706]
[1771086196148,0.55208679,2070.1,2069.1,0.57828112]
[1771086199256,0.55208679,2070.1,2069.3,0.57828112]
[1771086200553,0.55208679,2070.3,2069.5,0.57828112]
[1771086201050,0.55208679,2070.3,2069.5,0.07828112]
[1771086204650,0.55208679,2070.3,2069.7,0.25601527]
[1771086204855,0.55208679,2070.3,2069.6,0.24167]
[1771086205055,0.55208679,2070.3,2069.6,0.49768527]
[1771086207254,0.55208679,2070.3,2069.7,0.25554178]
[1771086207754,0.55208679,2070.7,2070.0,0.24163]
[1771086208156,0.55208679,2070.7,2070.0,0.50183208]
[1771086208355,0.55208679,2070.7,2070.1,0.26020208]
[1771086210154,0.55208679,2071.3,2070.3,0.26349629]
[1771086210353,0.55208679,2071.1,2070.3,0.26349629]
[1771086212059,0.55208679,2071.1,2070.2,0.50509629]
[1771086212457,0.55208679,2071.1,2070.2,0.2416]
[1771086214561,0.55208679,2071.1,2070.0,0.26903863]
[1771086214755,0.55208679,2071.1,2069.6,0.24166]
[1771086215062,0.55208679,2070.9,2069.6,0.5164375]
[1771086215264,0.55208679,2070.7,2069.6,0.5164375]
[1771086215857,0.55208679,2070.7,2069.7,0.27727031]
[1771086222772,0.55208679,2070.7,2069.6,0.51846742]
[1771086223272,0.55208679,2070.7,2069.7,0.27681826]
[1771086224870,0.55208679,2070.7,2069.6,0.24166]
[1771086225069,0.5686099,2070.5,2069.6,0.24166]
[1771086230774,0.5686099,2070.5,2069.6,0.51833202]
[1771086232783,0.5686099,2070.5,2069.6,0.24166]
[1771086234084,0.5686099,2070.5,2069.2,0.27890962]
[1771086234280,0.5686099,2070.3,2069.2,0.27890962]
[1771086234875,3.9757383,2070.6,2069.1,0.24173]
[1771086234876,0.5686099,2070.1,2069.1,0.24173]
[1771086235082,0.5686099,2069.9,2069.0,0.52690668]
[1771086235276,0.5686099,2069.9,2068.6,0.76242962]
[1771086235277,0.5686099,2069.7,2068.6,0.76242962]
[1771086236279,0.5686099,2069.7,2068.6,0.76774731]
[1771086236876,0.5686099,2069.7,2068.6,0.52595731]
[1771086239776,0.5686099,2069.7,2068.6,0.00531769]
[1771086240086,0.5686099,2069.3,2067.9,0.53318801]
[1771086240280,0.5686099,2069.2,2067.9,0.53318801]
[1771086240879,0.5686099,2069.0,2067.9,0.53318801]
[1771086241184,0.5686099,2069.0,2068.1,0.53318801]
[1771086241779,0.5686099,2069.4,2068.3,0.53318801]
[1771086242184,0.5686099,2069.4,2068.5,0.52930476]
[1771086242685,0.5686099,2069.7,2068.7,0.52930476]
[1771086250988,0.5686099,2069.7,2069.1,0.52456885]
[1771086251387,0.5686099,2069.7,2069.0,0.26630885]
[1771086252790,0.5686099,2069.7,2068.6,0.0213651]
[1771086252991,0.5686099,2069.7,2068.5,0.2418]
[1771086254997,0.57394368,2069.2,2067.9,0.00505866]
[1771086255197,0.57394368,2068.8,2066.9,0.28620599]
[1771086255498,0.57394368,2068.6,2067.1,0.28620599]
[1771086255794,0.57394368,2068.4,2067.1,0.28620599]
[1771086255995,0.57394368,2068.6,2067.3,0.28700701]
[1771086256193,0.57871927,2068.6,2067.4,0.24193]
[1771086256398,0.57871927,2068.6,2067.4,0.52893701]
[1771086256899,0.57871927,2068.6,2067.5,0.28700701]
[1771086259803,0.57871927,2068.6,2067.5,0.26182525]
[1771086264809,0.57871927,2068.6,2067.5,0.23605522]
[1771086266600,0.57871927,2068.6,2067.8,0.24188]
[1771086266800,0.57871927,2068.6,2067.9,0.2359935]
[1771086267408,0.00477559,2068.6,2068.1,0.2359935]
[1771086267700,0.57871927,2068.6,2068.0,0.24186]
[1771086268105,0.57871927,2068.6,2068.0,0.24449668]
[1771086268499,0.57394368,2069.2,2068.5,0.52034668]
[1771086268702,0.57394368,2069.8,2068.7,0.57849417]
[1771086269096,0.57394368,2069.6,2068.7,0.57849417]
[1771086269305,0.57394368,2069.6,2068.6,0.24179]
[1771086269507,0.57394368,2069.6,2068.1,0.57849417]
[1771086269909,0.57394368,2069.4,2068.1,0.57849417]
[1771086271009,0.57394368,2069.2,2068.1,0.57849417]
[1771086271508,0.57394368,2069.2,2068.0,0.82034417]
[1771086271708,0.57394368,2069.2,2068.1,0.57849417]
[1771086272100,0.57394368,2069.2,2068.0,0.24185]
[1771086272101,0.57394368,2069.2,2068.0,0.82034417]
[1771086272703,0.57394368,2069.2,2068.1,0.57849417]
[1771086274912,0.57394368,2069.2,2068.0,0.82034417]
[1771086275209,0.57394368,2069.2,2068.1,0.57849417]
[1771086279016,0.57394368,2069.2,2068.3,0.57849417]
[1771086279513,0.57394368,2069.2,2068.2,0.24184]
[1771086279812,0.57394368,2069.2,2068.2,0.82033417]
[1771086280816,0.57394368,2069.2,2068.3,0.57849417]
[1771086281711,0.24179,2068.7,2067.3,0.55195933]
[1771086281913,0.58194441,2068.6,2067.3,0.55195933]
[1771086282112,0.58194441,2068.5,2067.3,0.55195933]
[1771086283816,0.58194441,2068.5,2067.5,0.56863382]
[1771086286116,0.57001667,2068.9,2067.7,0.56863382]
[1771086286314,0.57001667,2068.9,2067.9,0.56863382]